[Event "Lueneburger Schachfestival GM 2019"]
[Site "Lueneburg"]
[Date "2019.08.08"]
[Round "7.1"]
[White "Wachinger, Nikolas"]
[Black "Reuker, Jari"]
[Result "1-0"]
[ECO "D31"]
[WhiteElo "2318"]
[BlackElo "2403"]
[Annotator "NA"]
[PlyCount "57"]
[EventDate "2019.08.02"]
[EventType "tourn"]
[EventCountry "GER"]
[SourceTitle "playchess.com"]
[Source "ChessBase"]
[SourceQuality "1"]
[TimeControl "40/5400+30:1800+30"]

1. d4 {[%emt 0:00:48]} d5 {[%emt 0:05:16]} 2. c4 {[%emt 0:00:27]} e6 {[%emt 0:05:20]} 3. Nc3 {[%emt 0:00:24]} c6 {[%emt 0:00:23]} 4. e4 {[%emt 0:01:02]} dxe4 {[%emt 0:03:41]} 5. Nxe4 {[%emt 0:00:11]} Bb4+ {[%emt 0:00:55]} 6. Bd2 {[%emt 0:01:00]} Qxd4 {[%emt 0:02:26]} 7. Bxb4 {[%emt 0:00:07]} Qxe4+ {[%emt 0:00:03]} 8. Ne2 {[%emt 0:00:13]} Na6 {[%emt 0:07:38]} 9. Bf8 {[%emt 0:00:21]} Ne7 {[%emt 0:06:56]} 10. Bxg7 {[%emt 0:00:16]} Nb4 {[%emt 0:12:25]} 11. Bxh8 {[%emt 0:06:55]} e5 {[%emt 0:05:37]} 12. Qd6 {[%emt 0:30:32]} Nc2+ {[%emt 0:06:51]} 13. Kd2 {[%emt 0:12:39]} Bf5 {[%emt 0:05:59]} 14. Ng3 {[%emt 0:21:44]} Qf4+ {[%emt 0:00:18]} 15. Kc3 {[%emt 0:00:02]} Nxa1 {[%emt 0:07:19]} 16. Qd2 {[%emt 0:00:51]} Qh4 {[%emt 0:13:45]} 17. Be2 {[%emt 0:03:48]} Nd5+ {[%emt 0:06:54]} 18. cxd5 {[%emt 0:00:17]} cxd5 {[%emt 0:00:05]} 19. Bb5+ {[%emt 0:03:44]} Kf8 {[%emt 0:00:04]} 20. Rxa1 {[%emt 0:01:33]} Rc8+ {[%emt 0:03:32]} 21. Kb3 {[%emt 0:00:02]} Bc2+ {[%emt 0:00:34]} 22. Ka3 {[%emt 0:00:18]} Qe7+ {[%emt 0:03:58]} 23. Qb4 {[%emt 0:01:40]} Rc5 {[%emt 0:00:01]} 24. Bf6 {[%emt 0:00:18]} Qd6 {[%emt 0:01:19]} 25. Bxe5 {[%emt 0:00:13]} Qe7 {[%emt 0:00:22]} 26. Bf6 {[%emt 0:00:50]} Qd6 {[%emt 0:00:08]} 27. Re1 {[%emt 0:00:10]} Be4 {[%emt 0:00:36]} 28. Nxe4 {[%emt 0:00:19]} dxe4 {[%emt 0:00:16]} 29. Rxe4 {[%emt 0:00:08]} 1-0

[Event "Lueneburger Schachfestival GM 2019"]
[Site "Lueneburg"]
[Date "2019.08.08"]
[Round "7.2"]
[White "Korley, Kassa"]
[Black "Parvanyan, Ashot"]
[Result "0-1"]
[ECO "A49"]
[WhiteElo "2437"]
[BlackElo "2423"]
[Annotator "NA"]
[PlyCount "114"]
[EventDate "2019.08.02"]
[EventType "tourn"]
[EventCountry "GER"]
[SourceTitle "playchess.com"]
[Source "ChessBase"]
[SourceQuality "1"]
[TimeControl "40/5400+30:1800+30"]

1. d4 {[%emt 0:00:00]} Nf6 {[%emt 0:00:00]} 2. Nf3 {[%emt 0:00:00]} g6 {[%emt 0:00:09]} 3. g3 {[%emt 0:00:00]} Bg7 {[%emt 0:00:16]} 4. Bg2 {[%emt 0:00:00]} O-O {[%emt 0:00:09]} 5. O-O {[%emt 0:00:00]} d6 {[%emt 0:00:09]} 6. Re1 {[%emt 0:00:00]} Nc6 {[%emt 0:01:07]} 7. d5 {[%emt 0:03:45]} Nb8 {[%emt 0:00:19]} 8. c4 {[%emt 0:01:36]} e5 {[%emt 0:00:44]} 9. Nc3 {[%emt 0:00:21]} a5 {[%emt 0:02:23]} 10. e4 {[%emt 0:01:17]} Na6 {[%emt 0:02:52]} 11. Be3 {[%emt 0:04:16]} b6 {[%emt 0:09:45]} 12. Qc2 {[%emt 0:13:21]} Nc5 {[%emt 0:04:04]} 13. h3 {[%emt 0:01:44]} Bd7 {[%emt 0:02:11]} 14. a3 {[%emt 0:07:11]} a4 {[%emt 0:06:10]} 15. Bxc5 {[%emt 0:00:04]} bxc5 {[%emt 0:00:23]} 16. Reb1 {[%emt 0:00:02]} Qc8 {[%emt 0:11:25]} 17. Kh2 {[%emt 0:00:02]} Qa6 {[%emt 0:01:33]} 18. Bf1 {[%emt 0:00:07]} Bh6 {[%emt 0:12:26]} 19. b4 {[%emt 0:00:11]} axb3 {[%emt 0:00:14]} 20. Rxb3 {[%emt 0:00:27]} Nh5 {[%emt 0:00:47]} 21. Nh4 {[%emt 0:04:30]} Qc8 {[%emt 0:07:58]} 22. Rab1 {[%emt 0:01:09]} Qd8 {[%emt 0:01:41]} 23. Be2 {[%emt 0:03:15]} Ng7 {[%emt 0:02:24]} 24. a4 {[%emt 0:05:33]} f5 {[%emt 0:02:35]} 25. Bd3 {[%emt 0:03:21]} f4 {[%emt 0:03:53]} 26. Bf1 {[%emt 0:01:55]} Nh5 {[%emt 0:16:04]} 27. Ng2 {[%emt 0:00:11]} fxg3+ {[%emt 0:02:32]} 28. fxg3 {[%emt 0:00:01]} Nxg3 {[%emt 0:04:35]} 29. Kxg3 {[%emt 0:00:07]} Qg5+ {[%emt 0:00:27]} 30. Kh2 {[%emt 0:00:04]} Rf3 {[%emt 0:00:27]} 31. Ne2 {[%emt 0:01:51]} Bxa4 {[%emt 0:02:09]} 32. Rb8+ {[%emt 0:00:37]} Kg7 {[%emt 0:00:11]} 33. Qb2 {[%emt 0:03:02]} Rxb8 {[%emt 0:01:52]} 34. Qxb8 {[%emt 0:00:02]} Bd7 {[%emt 0:00:49]} 35. Qxc7 {[%emt 0:00:25]} Rxh3+ {[%emt 0:00:38]} 36. Kg1 {[%emt 0:00:01]} Qg4 {[%emt 0:00:12]} 37. Kf2 {[%emt 0:00:31]} Bd2 {[%emt 0:02:09]} 38. Ng1 {[%emt 0:04:32]} Be3+ {[%emt 0:00:46]} 39. Nxe3 {[%emt 0:03:46]} Qg3+ {[%emt 0:00:27]} 40. Ke2 {[%emt 0:00:04]} Qxe3+ {[%emt 0:00:17]} 41. Kd1 {[%emt 0:30:03]} Qd4+ {[%emt 0:13:08]} 42. Ke1 {[%emt 0:00:00]} Qxe4+ {[%emt 0:00:40]} 43. Kd2 {[%emt 0:00:00]} Rh2+ {[%emt 0:08:38]} 44. Be2 {[%emt 0:00:00]} Qxb1 {[%emt 0:04:00]} 45. Qxd7+ {[%emt 0:00:00]} Kh6 {[%emt 0:00:03]} 46. Qxd6 {[%emt 0:00:00]} Qb2+ {[%emt 0:00:55]} 47. Kd1 {[%emt 0:00:00]} Qd4+ {[%emt 0:01:30]} 48. Kc2 {[%emt 0:00:00]} Qxc4+ {[%emt 0:01:16]} 49. Kd1 {[%emt 0:00:00]} Qd4+ {[%emt 0:04:33]} 50. Kc2 {[%emt 0:00:00]} Rf2 {[%emt 0:00:26]} 51. Qe7 {[%emt 0:00:00]} c4 {[%emt 0:00:21]} 52. d6 {[%emt 0:00:00]} Qd3+ {[%emt 0:00:43]} 53. Kc1 {[%emt 0:00:00]} Qa3+ {[%emt 0:00:32]} 54. Kd2 {[%emt 0:00:00]} Qb4+ {[%emt 0:00:30]} 55. Kc2 {[%emt 0:00:00]} c3 {[%emt 0:00:18]} 56. Qxe5 {[%emt 0:00:00]} Qb2+ {[%emt 0:00:36]} 57. Kd3 {[%emt 0:00:00]} Qd2+ {[%emt 0:00:14]} 0-1

[Event "Lueneburger Schachfestival GM 2019"]
[Site "Lueneburg"]
[Date "2019.08.08"]
[Round "7.3"]
[White "Polster, Christian"]
[Black "Pajeken, Jakob Leon"]
[Result "1/2-1/2"]
[ECO "D27"]
[WhiteElo "2254"]
[BlackElo "2314"]
[Annotator "NA"]
[PlyCount "52"]
[EventDate "2019.08.02"]
[EventType "tourn"]
[EventCountry "GER"]
[SourceTitle "playchess.com"]
[Source "ChessBase"]
[SourceQuality "1"]
[TimeControl "40/5400+30:1800+30"]

1. d4 {[%emt 0:00:00]} d5 {[%emt 0:00:00]} 2. c4 {[%emt 0:00:00]} dxc4 {[%emt 0:00:00]} 3. e3 {[%emt 0:02:46]} Nf6 {[%emt 0:00:00]} 4. Bxc4 {[%emt 0:00:12]} e6 {[%emt 0:00:04]} 5. Nf3 {[%emt 0:00:40]} a6 {[%emt 0:00:18]} 6. a4 {[%emt 0:01:20]} c5 {[%emt 0:00:17]} 7. O-O {[%emt 0:01:05]} Nc6 {[%emt 0:00:06]} 8. Nc3 {[%emt 0:04:22]} Be7 {[%emt 0:00:20]} 9. Qe2 {[%emt 0:18:39]} Qc7 {[%emt 0:00:12]} 10. Rd1 {[%emt 0:03:00]} O-O {[%emt 0:00:18]} 11. e4 {[%emt 0:11:16]} Ng4 {[%emt 0:00:16]} 12. e5 {[%emt 0:14:19]} cxd4 {[%emt 0:01:30]} 13. Nxd4 {[%emt 0:01:09]} Ngxe5 {[%emt 0:07:52]} 14. Bf4 {[%emt 0:02:34]} Qa5 {[%emt 0:07:16]} 15. Nxc6 {[%emt 0:06:31]} Nxc6 {[%emt 0:00:09]} 16. Ne4 {[%emt 0:02:37]} Qf5 {[%emt 0:02:43]} 17. Bd6 {[%emt 0:07:09]} Bxd6 {[%emt 0:01:29]} 18. Nxd6 {[%emt 0:00:02]} Qf6 {[%emt 0:00:22]} 19. Rac1 {[%emt 0:04:49]} e5 {[%emt 0:01:49]} 20. Bd5 {[%emt 0:05:51]} Nd4 {[%emt 0:05:30]} 21. Rxd4 {[%emt 0:00:33]} exd4 {[%emt 0:00:07]} 22. Nxf7 {[%emt 0:00:55]} d3 {[%emt 0:00:46]} 23. Qe5 {[%emt 0:07:09]} h6 {[%emt 0:11:40]} 24. Qxf6 {[%emt 0:00:39]} gxf6 {[%emt 0:00:09]} 25. Ne5+ {[%emt 0:00:50]} Kh8 {[%emt 0:00:34]} 26. Ng6+ {[%emt 0:01:17]} Kg7 {[%emt 0:00:24]} 1/2-1/2

[Event "Lueneburger Schachfestival GM 2019"]
[Site "Lueneburg"]
[Date "2019.08.08"]
[Round "7.4"]
[White "Vorobiov, Evgeny E."]
[Black "Sriram, Jha"]
[Result "1-0"]
[ECO "D12"]
[WhiteElo "2578"]
[BlackElo "2381"]
[Annotator "ChessBase"]
[PlyCount "63"]
[EventDate "2019.08.02"]
[EventType "tourn"]
[EventCountry "GER"]
[SourceTitle "playchess.com"]
[Source "ChessBase"]
[SourceQuality "1"]
[TimeControl "40/5400+30:1800+30"]

1. d4 {[%emt 0:00:00]} d5 {[%emt 0:00:00]} 2. c4 {[%emt 0:00:00]} c6 {[%emt 0:00:00]} 3. Nf3 {[%emt 0:00:00]} Nf6 {[%emt 0:00:00]} 4. e3 {[%emt 0:00:00]} Bf5 {[%emt 0:00:00]} 5. Nc3 {[%emt 0:00:00]} e6 {[%emt 0:00:00]} 6. Nh4 {[%emt 0:00:00]} Be4 {[%emt 0:00:00]} 7. f3 {[%emt 0:00:05]} Bg6 {[%emt 0:00:00]} 8. Qb3 {[%emt 0:00:08]} Qc7 {[%emt 0:00:00]} 9. Bd2 {[%emt 0:00:13]} Be7 {[%emt 0:00:00]} 10. cxd5 {[%emt 0:00:22]} cxd5 {[%emt 0:01:45]} 11. Nxg6 {[%emt 0:00:14]} hxg6 {[%emt 0:00:02]} 12. O-O-O {[%emt 0:00:07]} Nc6 {[%emt 0:00:22]} 13. Kb1 {[%emt 0:00:06]} O-O {[%emt 0:02:04]} 14. Rc1 {[%emt 0:00:29]} a6 {[%emt 0:13:26]} 15. Qd1 {[%emt 0:03:16]} b5 {[%emt 0:03:44]} 16. g4 {[%emt 0:00:23]} Qd7 {[%emt 0:11:00]} 17. h4 {[%emt 0:01:56]} e5 {[%emt 0:00:36]} 18. Bd3 {[%emt 0:14:45]} Rab8 {[%emt 0:21:49]} 19. g5 {[%emt 0:16:37]} Nh5 {[%emt 0:01:10]} 20. Nxd5 {[%emt 0:01:33]} Qxd5 {[%emt 0:05:36]} 21. Be4 {[%emt 0:01:14]} Qd8 {[%emt 0:00:01]} 22. Rxc6 {[%emt 0:02:00]} exd4 {[%emt 0:10:53]} 23. exd4 {[%emt 0:02:48]} Qxd4 {[%emt 0:00:16]} 24. Ba5 {[%emt 0:01:24]} Qe3 {[%emt 0:08:09]} 25. Rc3 {[%emt 0:05:59]} Qf2 {[%emt 0:00:51]} 26. Rc2 {[%emt 0:00:09]} Qe3 {[%emt 0:00:19]} 27. Re1 {[%emt 0:00:50]} Qf4 {[%emt 0:02:11]} 28. Bc7 {[%emt 0:00:41]} Qxh4 {[%emt 0:00:11]} 29. Bxb8 {[%emt 0:02:10]} Rd8 {[%emt 0:06:34]} 30. Rd2 {[%emt 0:05:24]} Rxb8 {[%emt 0:00:29]} 31. Bxg6 {[%emt 0:00:45]} Bxg5 {[%emt 0:03:02]} 32. Rd8+ {[%emt 0:00:33]} 1-0

[Event "Lueneburger Schachfestival GM 2019"]
[Site "Lueneburg"]
[Date "2019.08.08"]
[Round "7.5"]
[White "Koellner, Ruben Gideon"]
[Black "Ovsejevitsch, Sergei"]
[Result "0-1"]
[ECO "D04"]
[WhiteElo "2315"]
[BlackElo "2590"]
[Annotator "ChessBase"]
[PlyCount "86"]
[EventDate "2019.08.02"]
[EventType "tourn"]
[EventCountry "GER"]
[SourceTitle "playchess.com"]
[Source "ChessBase"]
[SourceQuality "1"]
[TimeControl "40/5400+30:1800+30"]

1. d4 {[%emt 0:00:00]} Nf6 {[%emt 0:00:00]} 2. Nf3 {[%emt 0:00:00]} d5 {[%emt 0:01:14]} 3. e3 {[%emt 0:00:04]} c5 {[%emt 0:01:15]} 4. b3 {[%emt 0:00:54]} cxd4 {[%emt 0:01:07]} 5. exd4 {[%emt 0:00:08]} Nc6 {[%emt 0:00:13]} 6. Bd3 {[%emt 0:03:26]} Bg4 {[%emt 0:03:12]} 7. Bb2 {[%emt 0:00:26]} e6 {[%emt 0:04:26]} 8. a3 {[%emt 0:01:36]} Bd6 {[%emt 0:00:36]} 9. O-O {[%emt 0:00:30]} O-O {[%emt 0:00:14]} 10. Nbd2 {[%emt 0:00:05]} Qc7 {[%emt 0:01:06]} 11. Qe1 {[%emt 0:04:23]} Rfe8 {[%emt 0:09:45]} 12. Ne5 {[%emt 0:00:59]} Bf5 {[%emt 0:00:08]} 13. f4 {[%emt 0:05:04]} Qb6 {[%emt 0:03:40]} 14. Qf2 {[%emt 0:04:44]} Nxe5 {[%emt 0:07:50]} 15. fxe5 {[%emt 0:02:48]} Ng4 {[%emt 0:00:27]} 16. Qe2 {[%emt 0:06:51]} Bxe5 {[%emt 0:03:47]} 17. Nf3 {[%emt 0:01:04]} Bd6 {[%emt 0:04:58]} 18. Bxf5 {[%emt 0:04:16]} exf5 {[%emt 0:00:30]} 19. Qd3 {[%emt 0:00:04]} g6 {[%emt 0:03:16]} 20. Rae1 {[%emt 0:04:40]} Re4 {[%emt 0:01:21]} 21. h3 {[%emt 0:01:39]} Nf6 {[%emt 0:00:24]} 22. Nd2 {[%emt 0:00:35]} Rxe1 {[%emt 0:00:40]} 23. Rxe1 {[%emt 0:00:02]} Ne4 {[%emt 0:00:17]} 24. Nf3 {[%emt 0:02:32]} Rc8 {[%emt 0:06:30]} 25. Re2 {[%emt 0:00:33]} Qc7 {[%emt 0:02:30]} 26. Qb5 {[%emt 0:03:09]} Qc6 {[%emt 0:00:59]} 27. Qa5 {[%emt 0:01:09]} a6 {[%emt 0:03:04]} 28. Ne5 {[%emt 0:03:17]} Qb5 {[%emt 0:00:47]} 29. Qe1 {[%emt 0:01:00]} Qb6 {[%emt 0:02:22]} 30. Nf3 {[%emt 0:00:55]} Qc7 {[%emt 0:00:31]} 31. a4 {[%emt 0:01:01]} b5 {[%emt 0:05:05]} 32. axb5 {[%emt 0:01:29]} axb5 {[%emt 0:00:06]} 33. g4 {[%emt 0:02:52]} fxg4 {[%emt 0:02:48]} 34. hxg4 {[%emt 0:00:07]} Bg3 {[%emt 0:04:47]} 35. Qf1 {[%emt 0:01:18]} Qf4 {[%emt 0:00:46]} 36. Rg2 {[%emt 0:01:28]} Qe3+ {[%emt 0:01:09]} 37. Kh1 {[%emt 0:00:19]} Nf2+ {[%emt 0:00:43]} 38. Kg1 {[%emt 0:00:19]} Nxg4+ {[%emt 0:01:48]} 39. Kh1 {[%emt 0:00:05]} Nf2+ {[%emt 0:00:16]} 40. Kg1 {[%emt 0:00:05]} Qxf3 {[%emt 0:00:33]} 41. Bc1 {[%emt 0:30:05]} Nh3+ {[%emt 0:30:24]} 42. Kh1 {[%emt 0:00:01]} Qxf1+ {[%emt 0:00:11]} 43. Rg1 {[%emt 0:00:03]} Qxg1# {[%emt 0:00:11]} 0-1

[Event "Lueneburger Schachfestival GM 2019"]
[Site "Lueneburg"]
[Date "2019.08.09"]
[Round "8.4"]
[White "Parvanyan, Ashot"]
[Black "Polster, Christian"]
[Result "1/2-1/2"]
[ECO "D23"]
[WhiteElo "2423"]
[BlackElo "2254"]
[Annotator "NA"]
[PlyCount "98"]
[EventDate "2019.08.02"]
[EventType "tourn"]
[EventCountry "GER"]
[SourceTitle "playchess.com"]
[Source "ChessBase"]
[SourceQuality "1"]
[TimeControl "40/5400+30:1800+30"]

1. Nf3 {[%emt 0:00:00]} d5 {[%emt 0:04:46]} 2. d4 {[%emt 0:00:44]} c6 {[%emt 0:01:26]} 3. c4 {[%emt 0:00:17]} Nf6 {[%emt 0:07:06]} 4. Qb3 {[%emt 0:04:17]} dxc4 {[%emt 0:08:42]} 5. Qxc4 {[%emt 0:00:17]} Nbd7 {[%emt 0:05:14]} 6. g3 {[%emt 0:03:12]} e5 {[%emt 0:03:31]} 7. dxe5 {[%emt 0:08:21]} Nxe5 {[%emt 0:03:09]} 8. Nxe5 {[%emt 0:00:10]} Qa5+ {[%emt 0:00:08]} 9. Nc3 {[%emt 0:00:44]} Qxe5 {[%emt 0:00:11]} 10. Bg2 {[%emt 0:01:15]} Qc5 {[%emt 0:04:47]} 11. Qb3 {[%emt 0:07:05]} Qb4 {[%emt 0:14:10]} 12. Qc2 {[%emt 0:00:53]} Be6 {[%emt 0:02:24]} 13. O-O {[%emt 0:04:11]} Be7 {[%emt 0:03:36]} 14. Bd2 {[%emt 0:02:56]} Qc4 {[%emt 0:03:09]} 15. b3 {[%emt 0:03:26]} Qc5 {[%emt 0:02:28]} 16. e4 {[%emt 0:04:14]} Qh5 {[%emt 0:05:55]} 17. f3 {[%emt 0:07:04]} Bh3 {[%emt 0:02:18]} 18. Bxh3 {[%emt 0:04:43]} Qxh3 {[%emt 0:00:03]} 19. Ne2 {[%emt 0:00:40]} O-O {[%emt 0:03:37]} 20. Nf4 {[%emt 0:17:15]} Qd7 {[%emt 0:02:34]} 21. Rad1 {[%emt 0:02:41]} Qc7 {[%emt 0:01:40]} 22. Kg2 {[%emt 0:02:18]} Bd6 {[%emt 0:01:39]} 23. Nd3 {[%emt 0:01:07]} Rfe8 {[%emt 0:01:36]} 24. Bc3 {[%emt 0:01:27]} Nd7 {[%emt 0:01:20]} 25. Rfe1 {[%emt 0:01:06]} Ne5 {[%emt 0:02:16]} 26. Nf2 {[%emt 0:00:19]} f6 {[%emt 0:02:56]} 27. f4 {[%emt 0:04:05]} Nf7 {[%emt 0:00:18]} 28. Ng4 {[%emt 0:00:09]} Qc8 {[%emt 0:05:18]} 29. Ne3 {[%emt 0:04:26]} Qe6 {[%emt 0:01:18]} 30. Nf5 {[%emt 0:00:28]} Bf8 {[%emt 0:03:10]} 31. Nd4 {[%emt 0:00:20]} Qe7 {[%emt 0:01:13]} 32. h4 {[%emt 0:13:14]} c5 {[%emt 0:01:35]} 33. Nf5 {[%emt 0:01:36]} Qe6 {[%emt 0:00:13]} 34. Kf3 {[%emt 0:00:56]} Nd6 {[%emt 0:00:50]} 35. Nxd6 {[%emt 0:00:28]} Bxd6 {[%emt 0:00:02]} 36. f5 {[%emt 0:00:40]} Qe7 {[%emt 0:00:34]} 37. Rd5 {[%emt 0:00:50]} Rad8 {[%emt 0:00:56]} 38. Red1 {[%emt 0:00:31]} Bc7 {[%emt 0:01:20]} 39. Bb2 {[%emt 0:00:33]} b6 {[%emt 0:00:56]} 40. g4 {[%emt 0:00:28]} Rd6 {[%emt 0:00:52]} 41. Qc4 {[%emt 0:09:10]} Kf8 {[%emt 0:01:46]} 42. Rxd6 {[%emt 0:06:26]} Bxd6 {[%emt 0:00:08]} 43. Rd5 {[%emt 0:04:10]} Bb8 {[%emt 0:03:38]} 44. Qd3 {[%emt 0:04:12]} Qc7 $14 {[%emt 0:04:30]} 45. e5 {[%emt 0:00:12]} fxe5 {[%emt 0:04:00]} 46. Qe4 {[%emt 0:00:53]} Qe7 {[%emt 0:07:55]} 47. Kg3 {[%emt 0:01:28]} Rd8 {[%emt 0:02:32]} 48. Rxd8+ {[%emt 0:02:00]} Qxd8 {[%emt 0:00:02]} 49. g5 {[%emt 0:02:46]} Qd1 {[%emt 0:05:50]} 1/2-1/2

[Event "Lueneburger Schachfestival GM 2019"]
[Site "Lueneburg"]
[Date "2019.08.10"]
[Round "9.1"]
[White "Korley, Kassa"]
[Black "Reuker, Jari"]
[Result "1/2-1/2"]
[ECO "E32"]
[WhiteElo "2437"]
[BlackElo "2403"]
[Annotator "NA"]
[PlyCount "45"]
[EventDate "2019.08.02"]
[EventType "tourn"]
[EventCountry "GER"]
[SourceTitle "playchess.com"]
[Source "ChessBase"]
[SourceQuality "1"]
[TimeControl "40/5400+30:1800+30"]

1. d4 {[%emt 0:00:00]} Nf6 {[%emt 0:00:00]} 2. c4 {[%emt 0:00:00]} e6 {[%emt 0:00:00]} 3. Nc3 {[%emt 0:00:00]} Bb4 {[%emt 0:00:56]} 4. Qc2 {[%emt 0:00:00]} O-O {[%emt 0:07:28]} 5. a3 {[%emt 0:00:00]} Bxc3+ {[%emt 0:00:09]} 6. Qxc3 {[%emt 0:00:00]} Qe8 {[%emt 0:04:41]} 7. Nf3 {[%emt 0:00:10]} a5 {[%emt 0:01:49]} 8. b3 {[%emt 0:01:31]} d6 {[%emt 0:02:49]} 9. Bb2 {[%emt 0:00:04]} Nbd7 {[%emt 0:02:45]} 10. e3 {[%emt 1:33:15]} b6 {[%emt 0:04:55]} 11. Be2 {[%emt 0:00:00]} Bb7 {[%emt 0:01:51]} 12. O-O {[%emt 0:00:00]} Ne4 {[%emt 0:02:31]} 13. Qc2 {[%emt 0:00:00]} f5 {[%emt 0:01:35]} 14. b4 {[%emt 0:00:00]} c5 {[%emt 0:11:40]} 15. bxc5 {[%emt 0:00:00]} bxc5 {[%emt 0:01:31]} 16. Rab1 {[%emt 0:00:00]} Bc6 {[%emt 0:12:44]} 17. Nd2 {[%emt 0:00:00]} Qg6 {[%emt 0:08:33]} 18. f3 {[%emt 0:00:00]} Qh6 {[%emt 0:02:11]} 19. Qd3 {[%emt 0:00:00]} cxd4 {[%emt 0:02:30]} 20. fxe4 {[%emt 0:00:00]} Nc5 {[%emt 0:02:51]} 21. Qxd4 {[%emt 0:00:00]} e5 {[%emt 0:00:05]} 22. Qc3 {[%emt 0:00:00]} Na4 {[%emt 0:00:47]} 23. Qd3 {[%emt 0:00:00]} 1/2-1/2

[Event "Lueneburger Schachfestival GM 2019"]
[Site "Lueneburg"]
[Date "2019.08.10"]
[Round "9.2"]
[White "Polster, Christian"]
[Black "Wachinger, Nikolas"]
[Result "1-0"]
[ECO "A06"]
[WhiteElo "2254"]
[BlackElo "2318"]
[Annotator "NA"]
[PlyCount "63"]
[EventDate "2019.08.02"]
[EventType "tourn"]
[EventCountry "GER"]
[SourceTitle "playchess.com"]
[Source "ChessBase"]
[SourceQuality "1"]
[TimeControl "40/5400+30:1800+30"]

1. b3 {[%emt 0:00:00]} c5 {[%emt 0:00:30]} 2. Bb2 {[%emt 0:00:00]} d5 {[%emt 0:01:22]} 3. e3 {[%emt 0:00:25]} a6 {[%emt 0:04:24]} 4. Nf3 {[%emt 0:02:26]} Nc6 {[%emt 0:00:47]} 5. d4 {[%emt 0:02:50]} Bg4 {[%emt 0:12:54]} 6. Be2 {[%emt 0:03:11]} cxd4 {[%emt 0:01:29]} 7. Nxd4 {[%emt 0:07:17]} Bxe2 {[%emt 0:01:50]} 8. Qxe2 {[%emt 0:00:40]} Rc8 {[%emt 0:14:40]} 9. O-O {[%emt 0:03:31]} Nf6 {[%emt 0:00:25]} 10. Nxc6 {[%emt 0:04:38]} Rxc6 {[%emt 0:00:14]} 11. Na3 {[%emt 0:08:27]} e6 {[%emt 0:23:47]} 12. c4 {[%emt 0:01:35]} Bxa3 {[%emt 0:05:46]} 13. Bxa3 {[%emt 0:00:16]} Qa5 {[%emt 0:00:08]} 14. Qb2 {[%emt 0:05:19]} dxc4 {[%emt 0:00:42]} 15. bxc4 {[%emt 0:02:23]} Rb6 {[%emt 0:00:14]} 16. Qd4 {[%emt 0:01:57]} e5 {[%emt 0:00:40]} 17. Qd3 {[%emt 0:00:35]} Nd7 {[%emt 0:11:25]} 18. Rfd1 {[%emt 0:04:08]} Qa4 {[%emt 0:00:10]} 19. c5 {[%emt 0:09:56]} Rg6 {[%emt 0:01:19]} 20. c6 {[%emt 0:02:02]} Qxc6 {[%emt 0:00:10]} 21. e4 {[%emt 0:03:34]} Qb5 {[%emt 0:02:54]} 22. Rac1 {[%emt 0:00:33]} Kd8 {[%emt 0:00:56]} 23. Qd2 {[%emt 0:01:58]} f5 {[%emt 0:04:53]} 24. Rc5 {[%emt 0:01:51]} Qa4 {[%emt 0:01:21]} 25. Rd5 {[%emt 0:00:46]} Qxe4 {[%emt 0:02:11]} 26. Rxd7+ {[%emt 0:00:12]} Kc8 {[%emt 0:00:13]} 27. f3 {[%emt 0:02:16]} Qxf3 {[%emt 0:00:07]} 28. Rd8+ {[%emt 0:01:56]} Kc7 {[%emt 0:00:02]} 29. Qd7+ {[%emt 0:00:17]} Kb6 {[%emt 0:00:04]} 30. Rb1+ {[%emt 0:00:11]} Ka5 {[%emt 0:00:30]} 31. Qd2+ {[%emt 0:00:08]} Ka4 {[%emt 0:00:15]} 32. Qb4# {[%emt 0:00:05]} 1-0

[Event "Lueneburger Schachfestival GM 2019"]
[Site "Lueneburg"]
[Date "2019.08.10"]
[Round "9.3"]
[White "Vorobiov, Evgeny E."]
[Black "Parvanyan, Ashot"]
[Result "1/2-1/2"]
[ECO "E20"]
[WhiteElo "2578"]
[BlackElo "2423"]
[Annotator "ChessBase"]
[PlyCount "34"]
[EventDate "2019.08.02"]
[EventType "tourn"]
[EventCountry "GER"]
[SourceTitle "playchess.com"]
[Source "ChessBase"]
[SourceQuality "1"]
[TimeControl "40/5400+30:1800+30"]

1. d4 {[%emt 0:00:00]} Nf6 {[%emt 0:00:00]} 2. c4 {[%emt 0:00:00]} c5 {[%emt 0:00:00]} 3. Nf3 {[%emt 0:02:24]} cxd4 {[%emt 0:01:54]} 4. Nxd4 {[%emt 0:00:04]} e6 {[%emt 0:00:36]} 5. Nc3 {[%emt 0:02:31]} Bb4 {[%emt 0:00:29]} 6. g3 {[%emt 0:00:34]} O-O {[%emt 0:00:59]} 7. Bg2 {[%emt 0:00:32]} d5 {[%emt 0:00:08]} 8. cxd5 {[%emt 0:21:02]} Nxd5 {[%emt 0:02:03]} 9. Qb3 {[%emt 0:06:31]} Nc6 {[%emt 0:26:05]} 10. Nxc6 {[%emt 0:02:28]} bxc6 {[%emt 0:00:11]} 11. O-O {[%emt 0:00:21]} Qa5 {[%emt 0:05:25]} 12. Bd2 {[%emt 0:05:24]} Bxc3 {[%emt 0:01:23]} 13. Bxc3 {[%emt 0:05:08]} Nxc3 {[%emt 0:00:36]} 14. Qxc3 {[%emt 0:01:22]} Qxc3 {[%emt 0:00:10]} 15. bxc3 {[%emt 0:00:02]} Ba6 {[%emt 0:00:27]} 16. Bxc6 {[%emt 0:06:27]} Rac8 {[%emt 0:01:09]} 17. Bf3 {[%emt 0:00:08]} Rxc3 {[%emt 0:00:32]} 1/2-1/2

[Event "Lueneburger Schachfestival GM 2019"]
[Site "Lueneburg"]
[Date "2019.08.10"]
[Round "9.5"]
[White "Ovsejevitsch, Sergei"]
[Black "Sriram, Jha"]
[Result "1/2-1/2"]
[ECO "D10"]
[WhiteElo "2590"]
[BlackElo "2381"]
[Annotator "ChessBase"]
[PlyCount "21"]
[EventDate "2019.08.02"]
[EventType "tourn"]
[EventCountry "GER"]
[SourceTitle "playchess.com"]
[Source "ChessBase"]
[SourceQuality "1"]
[TimeControl "40/5400+30:1800+30"]

1. d4 {[%emt 0:00:00]} d5 {[%emt 0:00:00]} 2. c4 {[%emt 0:00:00]} c6 {[%emt 0:00:00]} 3. cxd5 {[%emt 0:00:00]} cxd5 {[%emt 0:00:00]} 4. Bf4 {[%emt 0:00:00]} Nc6 {[%emt 0:00:00]} 5. Nc3 {[%emt 0:00:05]} Nf6 {[%emt 0:00:00]} 6. e3 {[%emt 0:00:06]} Bf5 {[%emt 0:00:00]} 7. Bd3 {[%emt 0:00:07]} Bxd3 {[%emt 0:00:00]} 8. Qxd3 {[%emt 0:00:03]} e6 {[%emt 0:00:05]} 9. h3 {[%emt 0:00:21]} Bd6 {[%emt 0:00:03]} 10. Nge2 {[%emt 0:00:05]} O-O {[%emt 0:00:05]} 11. O-O {[%emt 1:34:43]} 1/2-1/2